[Event "EYCC Girls U12 2018"]
[Site "Riga"]
[Date "2018.08.21"]
[Round "2"]
[White "Kozachenko, Maria"]
[Black "Dakic, Marta"]
[Result "1-0"]
[ECO "B76"]
[WhiteElo "1792"]
[BlackElo "1614"]
[Annotator "NA RC"]
[PlyCount "135"]
[EventDate "2018.08.20"]
[EventType "swiss"]
[EventCountry "LAT"]
[SourceTitle "playchess.com"]
[Source "ChessBase"]
[SourceQuality "1"]
[TimeControl "40/5400+30:1800+30"]

1. e4 {[%emt 0:00:00]} c5 {[%emt 0:00:00]} 2. Nf3 {[%emt 0:00:00]} d6 {[%emt 0:00:00]} 3. d4 {[%emt 0:00:00]} cxd4 {[%emt 0:00:00]} 4. Nxd4 {[%emt 0:00:00]} Nf6 {[%emt 0:00:04]} 5. Nc3 {[%emt 0:00:03]} g6 {[%emt 0:00:27]} 6. f3 {[%emt 0:00:42]} Bg7 {[%emt 0:00:30]} 7. Be3 {[%emt 0:00:37]} O-O {[%emt 0:00:51]} 8. Qd2 {[%emt 0:00:34]} Nc6 {[%emt 0:00:47]} 9. O-O-O {[%emt 0:02:31]} Bd7 {[%emt 0:02:03]} 10. g4 {[%emt 0:01:50]} Qa5 {[%emt 0:03:30]} 11. Kb1 {[%emt 0:02:12]} Rfc8 {[%emt 0:03:21]} 12. Nb3 {[%emt 0:05:38]} Qd8 {[%emt 0:01:28]} 13. h4 {[%emt 0:03:16]} Ne5 {[%emt 0:04:18]} 14. Be2 {[%emt 0:03:53]} Nc4 {[%emt 0:06:08]} 15. Bxc4 {[%emt 0:00:59]} Rxc4 {[%emt 0:00:06]} 16. Bh6 {[%emt 0:02:29]} Bh8 {[%emt 0:02:54]} 17. Ne2 {[%emt 0:05:28]} Rac8 {[%emt 0:11:10]} 18. c3 {[%emt 0:02:33]} Ne8 {[%emt 0:08:19]} 19. h5 {[%emt 0:04:19]} e5 {[%emt 0:10:25]} 20. hxg6 {[%emt 0:02:36]} hxg6 {[%emt 0:01:08]} 21. Bf8 {[%emt 0:04:06]} Kxf8 {[%emt 0:07:53]} 22. Rxh8+ {[%emt 0:00:40]} Ke7 {[%emt 0:00:06]} 23. Qg5+ {[%emt 0:01:09]} Ke6 {[%emt 0:00:45]} 24. Nbd4+ {[%emt 0:05:42]} Rxd4 {[%emt 0:02:06]} 25. Nxd4+ {[%emt 0:00:30]} exd4 {[%emt 0:00:12]} 26. Qd5+ {[%emt 0:00:38]} Ke7 {[%emt 0:00:43]} 27. cxd4 {[%emt 0:01:30]} Qc7 {[%emt 0:04:16]} 28. Qg5+ {[%emt 0:02:51]} f6 {[%emt 0:01:59]} 29. Rh7+ {[%emt 0:00:46]} Kd8 {[%emt 0:00:10]} 30. Qd2 {[%emt 0:00:35]} Qc6 {[%emt 0:04:32]} 31. Re1 {[%emt 0:05:44]} Qb5 {[%emt 0:03:48]} 32. e5 {[%emt 0:04:31]} dxe5 {[%emt 0:07:31]} 33. dxe5 {[%emt 0:00:30]} fxe5 {[%emt 0:00:43]} 34. Rxe5 {[%emt 0:01:42]} Qf1+ {[%emt 0:00:35]} 35. Re1 {[%emt 0:00:13]} Qb5 {[%emt 0:00:36]} 36. Qd4 {[%emt 0:04:39]} Kc7 {[%emt 0:07:38]} 37. Rd1 {[%emt 0:03:41]} Rd8 {[%emt 0:00:47]} 38. Qxa7 {[%emt 0:02:02]} Nd6 {[%emt 0:04:49]} 39. Rc1+ {[%emt 0:02:01]} Nc4 {[%emt 0:00:07]} 40. Qd4 {[%emt 0:00:00]} Kb8 {[%emt 0:00:00]} 41. Qxc4 {[%emt 0:01:37]} Bc6 {[%emt 0:02:37]} 42. Qxb5 {[%emt 0:01:09]} Bxb5 {[%emt 0:00:06]} 43. Rcc7 {[%emt 0:01:22]} Bc6 {[%emt 0:00:39]} 44. f4 {[%emt 0:02:08]} Rd4 {[%emt 0:01:34]} 45. Rcf7 {[%emt 0:02:09]} Bf3 {[%emt 0:01:34]} 46. Rhg7 {[%emt 0:02:38]} Rd1+ {[%emt 0:01:49]} 47. Kc2 {[%emt 0:00:09]} Rg1 {[%emt 0:00:16]} 48. g5 {[%emt 0:03:18]} Rg2+ {[%emt 0:02:00]} 49. Kc3 {[%emt 0:00:25]} Rg3 {[%emt 0:01:18]} 50. Kd4 {[%emt 0:01:14]} Rg2 {[%emt 0:01:34]} 51. Rxg6 {[%emt 0:02:20]} Rxb2 {[%emt 0:00:11]} 52. Rf8+ {[%emt 0:00:31]} Kc7 {[%emt 0:01:09]} 53. Rg7+ {[%emt 0:00:40]} Kb6 {[%emt 0:01:21]} 54. Rf6+ {[%emt 0:00:36]} Ka7 {[%emt 0:00:31]} 55. g6 {[%emt 0:01:08]} Rxa2 {[%emt 0:00:59]} 56. Rc7 {[%emt 0:02:12]} Rg2 {[%emt 0:01:44]} 57. g7 {[%emt 0:00:47]} Bd1 {[%emt 0:02:07]} 58. Rff7 {[%emt 0:01:11]} Rd2+ {[%emt 0:01:40]} 59. Ke5 {[%emt 0:01:12]} Rg2 {[%emt 0:01:33]} 60. Rxb7+ {[%emt 0:00:52]} Ka6 {[%emt 0:00:41]} 61. Rb8 {[%emt 0:01:06]} Bh5 {[%emt 0:01:29]} 62. Rf6+ {[%emt 0:00:21]} Ka5 {[%emt 0:00:08]} 63. g8=Q {[%emt 0:00:12]} Rxg8 {[%emt 0:00:04]} 64. Rxg8 {[%emt 0:00:10]} Bd1 {[%emt 0:00:12]} 65. Rb8 {[%emt 0:00:09]} Bc2 {[%emt 0:00:11]} 66. Kd5 {[%emt 0:00:26]} Bd1 {[%emt 0:00:19]} 67. Kc5 {[%emt 0:00:06]} Bf3 {[%emt 0:00:12]} 68. Rb5+ {[%emt 0:00:27]} 1-0

[Event "EYCC Girls U12 2018"]
[Site "Riga"]
[Date "2018.08.21"]
[Round "2"]
[White "Cherepanova, Evita"]
[Black "Karacsonyi, Kata"]
[Result "0-1"]
[ECO "B67"]
[WhiteElo "1660"]
[BlackElo "1961"]
[Annotator "NA RC"]
[PlyCount "58"]
[EventDate "2018.08.20"]
[EventType "swiss"]
[EventCountry "LAT"]
[SourceTitle "playchess.com"]
[Source "ChessBase"]
[SourceQuality "1"]
[TimeControl "40/5400+30:1800+30"]

1. e4 {[%emt 0:00:00]} c5 {[%emt 0:00:00]} 2. Nf3 {[%emt 0:00:00]} d6 {[%emt 0:00:00]} 3. d4 {[%emt 0:00:00]} cxd4 {[%emt 0:00:00]} 4. Nxd4 {[%emt 0:00:01]} Nf6 {[%emt 0:00:02]} 5. Nc3 {[%emt 0:00:06]} Nc6 {[%emt 0:00:05]} 6. Bg5 {[%emt 0:00:17]} e6 {[%emt 0:00:08]} 7. Qd2 {[%emt 0:00:19]} a6 {[%emt 0:00:07]} 8. O-O-O {[%emt 0:01:17]} Bd7 {[%emt 0:00:09]} 9. f4 {[%emt 0:00:12]} b5 {[%emt 0:00:08]} 10. Nxc6 {[%emt 0:07:46]} Bxc6 {[%emt 0:00:07]} 11. e5 {[%emt 0:00:36]} dxe5 {[%emt 0:00:12]} 12. Qxd8+ {[%emt 0:00:13]} Rxd8 {[%emt 0:00:06]} 13. Rxd8+ {[%emt 0:00:03]} Kxd8 {[%emt 0:00:06]} 14. fxe5 {[%emt 0:00:03]} h6 {[%emt 0:00:07]} 15. exf6 {[%emt 0:04:42]} hxg5 {[%emt 0:00:14]} 16. a4 {[%emt 0:11:22]} b4 {[%emt 0:11:39]} 17. Na2 {[%emt 0:00:30]} a5 {[%emt 0:11:01]} 18. Bb5 {[%emt 0:08:35]} Bxg2 {[%emt 0:15:25]} 19. Rd1+ {[%emt 0:00:36]} Kc8 {[%emt 0:01:12]} 20. Rd7 {[%emt 0:02:13]} gxf6 {[%emt 0:08:39]} 21. Rxf7 {[%emt 0:00:52]} Bd6 {[%emt 0:02:48]} 22. Rxf6 {[%emt 0:05:52]} Bf4+ {[%emt 0:07:01]} 23. Kd1 {[%emt 0:00:40]} Rxh2 {[%emt 0:00:52]} 24. Ke1 {[%emt 0:22:46]} Bf3 {[%emt 0:00:56]} 25. Kf1 {[%emt 0:02:27]} e5 {[%emt 0:05:05]} 26. Rf8+ {[%emt 0:12:37]} Kc7 {[%emt 0:00:39]} 27. Rf7+ {[%emt 0:01:11]} Kd6 {[%emt 0:02:02]} 28. Rd7+ {[%emt 0:01:10]} Ke6 {[%emt 0:00:16]} 29. Kg1 {[%emt 0:03:15]} Bg3 {[%emt 0:01:01]} 0-1

[Event "EYCC Girls U12 2018"]
[Site "Riga"]
[Date "2018.08.21"]
[Round "2"]
[White "Denic, Hana"]
[Black "Bashylina, Luisa"]
[Result "0-1"]
[ECO "B43"]
[WhiteElo "1631"]
[BlackElo "1817"]
[Annotator "NA RC"]
[PlyCount "122"]
[EventDate "2018.08.20"]
[EventType "swiss"]
[EventCountry "LAT"]
[SourceTitle "playchess.com"]
[Source "ChessBase"]
[SourceQuality "1"]
[TimeControl "40/5400+30:1800+30"]

1. e4 {[%emt 0:00:00]} c5 {[%emt 0:00:00]} 2. Nf3 {[%emt 0:00:00]} e6 {[%emt 0:00:10]} 3. d4 {[%emt 0:00:20]} cxd4 {[%emt 0:00:05]} 4. Nxd4 {[%emt 0:00:11]} a6 {[%emt 0:00:13]} 5. Nc3 {[%emt 0:00:46]} Qc7 {[%emt 0:00:16]} 6. a3 {[%emt 0:00:54]} Nf6 {[%emt 0:01:30]} 7. f4 {[%emt 0:09:45]} d6 {[%emt 0:06:36]} 8. Be3 {[%emt 0:04:57]} Nbd7 {[%emt 0:01:55]} 9. Qf3 {[%emt 0:02:58]} b5 {[%emt 0:05:11]} 10. g4 {[%emt 0:06:27]} d5 {[%emt 0:04:16]} 11. e5 {[%emt 0:15:20]} Ne4 {[%emt 0:00:58]} 12. Nxe4 {[%emt 0:02:39]} dxe4 {[%emt 0:00:05]} 13. Qf2 {[%emt 0:00:41]} Bc5 {[%emt 0:05:15]} 14. O-O-O {[%emt 0:01:03]} Nb6 {[%emt 0:03:51]} 15. Kb1 {[%emt 0:04:57]} O-O {[%emt 0:09:13]} 16. Bg2 {[%emt 0:10:50]} Bb7 {[%emt 0:02:39]} 17. Nf5 {[%emt 0:07:31]} Bxe3 {[%emt 0:04:07]} 18. Nxe3 {[%emt 0:00:08]} Qc5 {[%emt 0:02:12]} 19. Qd2 {[%emt 0:06:55]} a5 {[%emt 0:04:29]} 20. Qd4 {[%emt 0:01:03]} Qc6 {[%emt 0:11:52]} 21. Qd6 {[%emt 0:01:58]} Na4 {[%emt 0:10:10]} 22. Qxc6 {[%emt 0:01:37]} Bxc6 {[%emt 0:00:06]} 23. Rd6 {[%emt 0:01:04]} Rac8 {[%emt 0:01:39]} 24. c3 {[%emt 0:00:56]} Nc5 {[%emt 0:03:50]} 25. Rhd1 {[%emt 0:04:07]} g6 {[%emt 0:04:12]} 26. g5 {[%emt 0:02:46]} Ba8 {[%emt 0:02:30]} 27. Ng4 {[%emt 0:01:15]} Kg7 {[%emt 0:04:50]} 28. Bf1 {[%emt 0:03:08]} Bc6 {[%emt 0:02:52]} 29. Re1 {[%emt 0:02:43]} Rfd8 {[%emt 0:00:48]} 30. Red1 {[%emt 0:01:19]} Rf8 {[%emt 0:02:52]} 31. h4 {[%emt 0:02:14]} Nb7 {[%emt 0:03:08]} 32. R6d4 {[%emt 0:00:24]} Nc5 {[%emt 0:00:09]} 33. Ka2 {[%emt 0:03:34]} Bd5+ {[%emt 0:01:13]} 34. c4 {[%emt 0:00:11]} bxc4 {[%emt 0:00:59]} 35. Bxc4 {[%emt 0:00:04]} Ba8 {[%emt 0:00:51]} 36. b4 {[%emt 0:00:58]} axb4 {[%emt 0:00:44]} 37. axb4 {[%emt 0:00:04]} Na4 {[%emt 0:00:13]} 38. Kb3 {[%emt 0:00:37]} Nb6 {[%emt 0:00:08]} 39. Nf6 {[%emt 0:01:34]} Nxc4 {[%emt 0:02:12]} 40. Rxc4 {[%emt 0:00:00]} Rxc4 {[%emt 0:00:00]} 41. Kxc4 {[%emt 0:03:25]} Rc8+ {[%emt 0:01:32]} 42. Kb3 {[%emt 0:00:47]} Bb7 {[%emt 0:03:05]} 43. Re1 {[%emt 0:02:46]} Bd5+ {[%emt 0:02:49]} 44. Nxd5 {[%emt 0:10:11]} exd5 {[%emt 0:00:05]} 45. Ka4 {[%emt 0:01:22]} Kf8 {[%emt 0:05:54]} 46. Re3 {[%emt 0:01:19]} Ke7 {[%emt 0:00:44]} 47. b5 {[%emt 0:01:14]} Ke6 {[%emt 0:04:14]} 48. b6 {[%emt 0:01:38]} Kf5 {[%emt 0:00:34]} 49. Kb5 {[%emt 0:03:33]} d4 {[%emt 0:00:17]} 50. Re1 {[%emt 0:00:24]} d3 {[%emt 0:00:47]} 51. b7 {[%emt 0:00:57]} Re8 {[%emt 0:01:02]} 52. Kc4 {[%emt 0:00:42]} Rd8 {[%emt 0:03:00]} 53. b8=Q {[%emt 0:08:37]} Rxb8 {[%emt 0:00:12]} 54. Kd4 {[%emt 0:00:13]} d2 {[%emt 0:03:56]} 55. Rd1 {[%emt 0:00:14]} Rd8+ {[%emt 0:00:14]} 56. Ke3 {[%emt 0:00:15]} Rd3+ {[%emt 0:00:09]} 57. Ke2 {[%emt 0:00:15]} Kxf4 {[%emt 0:00:13]} 58. Rf1+ {[%emt 0:01:12]} Rf3 {[%emt 0:00:22]} 59. Ra1 {[%emt 0:00:59]} e3 {[%emt 0:00:57]} 60. Ra6 {[%emt 0:00:57]} Rf2+ {[%emt 0:00:14]} 61. Kd1 {[%emt 0:00:36]} Rf1+ 0-1

[Event "EYCC Girls U12 2018"]
[Site "Riga"]
[Date "2018.08.21"]
[Round "2"]
[White "Berezovsky, Fiorina"]
[Black "Mikheeva, Galina"]
[Result "0-1"]
[ECO "C54"]
[WhiteElo "1625"]
[BlackElo "1776"]
[Annotator "NA"]
[PlyCount "174"]
[EventDate "2018.08.20"]
[EventType "swiss"]
[EventCountry "LAT"]
[SourceTitle "playchess.com"]
[Source "ChessBase"]
[SourceQuality "1"]
[TimeControl "40/5400+30:1800+30"]

1. e4 {[%emt 0:00:00]} e5 {[%emt 0:00:00]} 2. Nf3 {[%emt 0:00:00]} Nc6 {[%emt 0:00:00]} 3. Bc4 {[%emt 0:00:17]} Bc5 {[%emt 0:00:00]} 4. c3 {[%emt 0:00:34]} Nf6 {[%emt 0:00:00]} 5. d3 {[%emt 0:00:27]} O-O {[%emt 0:00:38]} 6. O-O {[%emt 0:00:48]} d5 {[%emt 0:00:06]} 7. exd5 {[%emt 0:03:30]} Nxd5 {[%emt 0:00:04]} 8. Re1 {[%emt 0:01:07]} Bg4 {[%emt 0:02:06]} 9. h3 {[%emt 0:04:47]} Bh5 {[%emt 0:04:54]} 10. Nbd2 {[%emt 0:04:36]} Bb6 {[%emt 0:09:26]} 11. g4 {[%emt 0:04:43]} Bg6 {[%emt 0:00:08]} 12. Nxe5 {[%emt 0:00:33]} Nxe5 {[%emt 0:00:32]} 13. Rxe5 {[%emt 0:00:11]} Nf4 {[%emt 0:00:50]} 14. Qf3 {[%emt 0:03:20]} Nxd3 {[%emt 0:06:21]} 15. Bxd3 {[%emt 0:01:18]} Qxd3 {[%emt 0:00:25]} 16. Qxd3 {[%emt 0:02:56]} Bxd3 {[%emt 0:00:49]} 17. Nf3 {[%emt 0:02:14]} Rfe8 {[%emt 0:03:17]} 18. Bf4 {[%emt 0:04:27]} f6 {[%emt 0:05:23]} 19. Rxe8+ {[%emt 0:05:57]} Rxe8 {[%emt 0:00:11]} 20. Nd4 {[%emt 0:02:54]} Bxd4 {[%emt 0:44:26]} 21. cxd4 {[%emt 0:00:23]} c6 {[%emt 0:00:01]} 22. Be3 {[%emt 0:15:43]} Bc4 {[%emt 0:01:40]} 23. a4 {[%emt 0:03:35]} Bd5 {[%emt 0:01:14]} 24. b4 {[%emt 0:02:14]} Kf7 {[%emt 0:04:11]} 25. b5 {[%emt 0:04:06]} Rc8 {[%emt 0:03:00]} 26. Kh2 {[%emt 0:10:52]} Ke6 {[%emt 0:03:18]} 27. b6 {[%emt 0:03:23]} axb6 {[%emt 0:06:11]} 28. Rb1 {[%emt 0:00:16]} Kd7 {[%emt 0:00:06]} 29. Rxb6 {[%emt 0:00:28]} Kc7 {[%emt 0:00:06]} 30. Rb1 {[%emt 0:00:58]} Ra8 {[%emt 0:02:11]} 31. Rb4 {[%emt 0:01:36]} b6 {[%emt 0:00:41]} 32. h4 {[%emt 0:02:31]} Ra6 {[%emt 0:01:28]} 33. g5 {[%emt 0:01:00]} Be4 {[%emt 0:01:19]} 34. Rc4 {[%emt 0:01:47]} Bd5 {[%emt 0:00:11]} 35. Rb4 {[%emt 0:00:28]} Bf3 {[%emt 0:00:15]} 36. Bf4+ {[%emt 0:02:52]} Kd7 {[%emt 0:00:40]} 37. a5 {[%emt 0:00:16]} b5 {[%emt 0:00:45]} 38. Bd2 {[%emt 0:00:37]} Rxa5 {[%emt 0:01:31]} 39. Rb3 {[%emt 0:00:34]} Bd5 {[%emt 0:00:21]} 40. Rg3 {[%emt 0:00:00]} Ra2 {[%emt 0:00:00]} 41. Be1 {[%emt 0:05:37]} Re2 {[%emt 0:02:55]} 42. Rg1 {[%emt 0:05:35]} f5 {[%emt 0:01:36]} 43. h5 {[%emt 0:03:13]} Re4 {[%emt 0:00:50]} 44. h6 {[%emt 0:02:54]} gxh6 {[%emt 0:01:25]} 45. gxh6 {[%emt 0:00:39]} Rh4+ {[%emt 0:00:08]} 46. Kg3 {[%emt 0:00:15]} Rxh6 {[%emt 0:00:33]} 47. Kf4 {[%emt 0:01:00]} Ke6 {[%emt 0:00:49]} 48. Bb4 {[%emt 0:04:54]} Rh4+ {[%emt 0:01:31]} 49. Ke3 {[%emt 0:00:24]} Rg4 {[%emt 0:00:58]} 50. Ra1 {[%emt 0:02:24]} Re4+ {[%emt 0:01:49]} 51. Kd3 {[%emt 0:00:17]} Bc4+ {[%emt 0:01:07]} 52. Kc3 {[%emt 0:00:18]} Rf4 {[%emt 0:00:51]} 53. Re1+ {[%emt 0:00:40]} Kf6 {[%emt 0:00:55]} 54. Rh1 {[%emt 0:00:57]} Rf3+ {[%emt 0:00:39]} 55. Kd2 {[%emt 0:00:55]} Rxf2+ {[%emt 0:00:05]} 56. Kc3 {[%emt 0:01:18]} Rf3+ {[%emt 0:01:18]} 57. Kd2 {[%emt 0:00:38]} Kg6 {[%emt 0:03:09]} 58. Rg1+ {[%emt 0:00:11]} Kh5 {[%emt 0:00:39]} 59. Rh1+ {[%emt 0:00:09]} Kg4 {[%emt 0:00:04]} 60. Rxh7 {[%emt 0:00:27]} Rd3+ {[%emt 0:00:18]} 61. Kc2 {[%emt 0:00:28]} Rxd4 {[%emt 0:00:34]} 62. Rg7+ {[%emt 0:00:25]} Kf3 {[%emt 0:00:18]} 63. Rc7 {[%emt 0:01:36]} Bd3+ {[%emt 0:00:49]} 64. Kc3 {[%emt 0:00:28]} Rd5 {[%emt 0:05:24]} 65. Rxc6 {[%emt 0:00:45]} f4 {[%emt 0:00:46]} 66. Rf6 {[%emt 0:07:52]} Bf5 {[%emt 0:01:28]} 67. Rf8 {[%emt 0:03:22]} Kf2 {[%emt 0:01:23]} 68. Ba5 {[%emt 0:01:01]} f3 {[%emt 0:03:27]} 69. Bb6+ {[%emt 0:00:35]} Kf1 {[%emt 0:01:25]} 70. Kb4 {[%emt 0:01:30]} Ke2 {[%emt 0:07:41]} 71. Re8+ {[%emt 0:00:15]} Kd2 {[%emt 0:00:41]} 72. Re3 {[%emt 0:02:10]} Bg4 {[%emt 0:00:22]} 73. Re4 {[%emt 0:00:39]} Bd7 {[%emt 0:00:58]} 74. Bf2 {[%emt 0:02:05]} Rd3 {[%emt 0:00:45]} 75. Bb6 {[%emt 0:01:07]} Kd1 {[%emt 0:00:31]} 76. Ba7 {[%emt 0:01:09]} Rd2 {[%emt 0:00:31]} 77. Bb6 {[%emt 0:01:02]} f2 {[%emt 0:00:28]} 78. Rf4 {[%emt 0:00:38]} Ke1 {[%emt 0:00:16]} 79. Re4+ {[%emt 0:00:27]} Re2 {[%emt 0:00:18]} 80. Bxf2+ {[%emt 0:00:43]} Kxf2 {[%emt 0:00:04]} 81. Rxe2+ {[%emt 0:00:15]} Kxe2 {[%emt 0:00:08]} 82. Kb3 {[%emt 0:00:07]} Kd3 {[%emt 0:00:04]} 83. Kb2 {[%emt 0:00:20]} Kc4 {[%emt 0:00:12]} 84. Kc2 {[%emt 0:00:05]} b4 {[%emt 0:00:04]} 85. Kb2 {[%emt 0:00:07]} b3 {[%emt 0:00:04]} 86. Kc1 {[%emt 0:00:22]} Kc3 {[%emt 0:00:03]} 87. Kb1 {[%emt 0:00:05]} b2 {[%emt 0:00:24]} 0-1

[Event "EYCC Girls U12 2018"]
[Site "Riga"]
[Date "2018.08.22"]
[Round "3"]
[White "Karacsonyi, Kata"]
[Black "Karmanova, Olga Dm"]
[Result "0-1"]
[ECO "B80"]
[WhiteElo "1961"]
[BlackElo "1730"]
[Annotator "NA"]
[PlyCount "100"]
[EventDate "2018.08.20"]
[EventType "swiss"]
[EventCountry "LAT"]
[SourceTitle "playchess.com"]
[Source "ChessBase"]
[SourceQuality "1"]
[TimeControl "40/5400+30:1800+30"]

1. e4 {[%emt 0:00:00]} c5 {[%emt 0:00:00]} 2. Nf3 {[%emt 0:00:00]} d6 {[%emt 0:00:00]} 3. d4 {[%emt 0:03:25]} Nf6 {[%emt 0:00:00]} 4. Nc3 {[%emt 0:00:11]} cxd4 {[%emt 0:00:17]} 5. Nxd4 {[%emt 0:00:07]} e6 {[%emt 0:01:16]} 6. Be3 {[%emt 0:03:40]} a6 {[%emt 0:01:40]} 7. Be2 {[%emt 0:01:28]} Be7 {[%emt 0:03:20]} 8. f3 {[%emt 0:01:54]} b5 {[%emt 0:00:50]} 9. O-O {[%emt 0:03:21]} Bb7 {[%emt 0:01:03]} 10. Qe1 {[%emt 0:05:34]} O-O {[%emt 0:05:41]} 11. Qg3 {[%emt 0:03:42]} Re8 {[%emt 0:03:18]} 12. Rad1 {[%emt 0:02:39]} Qc7 {[%emt 0:03:35]} 13. Bd3 $15 {[%emt 0:14:09]} Nbd7 {[%emt 0:01:32]} 14. Nce2 {[%emt 0:03:58]} Bf8 {[%emt 0:06:19]} 15. Qh4 {[%emt 0:14:55]} Nc5 {[%emt 0:05:23]} 16. Ng3 {[%emt 0:10:22]} Rac8 {[%emt 0:03:17]} 17. Nde2 {[%emt 0:10:31]} Nxd3 {[%emt 0:04:59]} 18. cxd3 {[%emt 0:00:25]} Qa5 {[%emt 0:01:42]} 19. Bg5 {[%emt 0:05:24]} Nd7 {[%emt 0:01:19]} 20. a3 {[%emt 0:04:52]} Rc2 {[%emt 0:01:23]} 21. Rb1 {[%emt 0:00:22]} Ne5 {[%emt 0:01:27]} 22. Nd4 {[%emt 0:03:14]} Rcc8 {[%emt 0:01:43]} 23. Rfd1 {[%emt 0:01:44]} d5 {[%emt 0:01:42]} 24. Be3 {[%emt 0:03:15]} Qa4 {[%emt 0:04:17]} 25. f4 {[%emt 0:02:06]} Ng6 {[%emt 0:00:09]} 26. Qg4 {[%emt 0:00:15]} Bc5 {[%emt 0:00:38]} 27. b3 {[%emt 0:00:41]} Qxa3 {[%emt 0:00:28]} 28. f5 {[%emt 0:01:07]} Ne5 {[%emt 0:01:08]} 29. Qf4 {[%emt 0:00:29]} Nd7 {[%emt 0:08:13]} 30. Nc2 {[%emt 0:00:33]} Bxe3+ {[%emt 0:00:36]} 31. Nxe3 {[%emt 0:00:15]} e5 {[%emt 0:00:34]} 32. Qg5 {[%emt 0:00:35]} f6 {[%emt 0:00:22]} 33. Qg4 {[%emt 0:00:14]} Qc5 {[%emt 0:01:24]} 34. Qf3 {[%emt 0:00:47]} dxe4 {[%emt 0:00:17]} 35. dxe4 {[%emt 0:00:36]} Red8 {[%emt 0:00:16]} 36. Kh1 {[%emt 0:00:34]} Qe7 {[%emt 0:00:35]} 37. Nh5 {[%emt 0:00:32]} Nc5 {[%emt 0:00:48]} 38. Ng3 {[%emt 0:00:31]} Rxd1+ {[%emt 0:01:14]} 39. Nxd1 {[%emt 0:00:29]} Bc6 {[%emt 0:00:32]} 40. Ne3 {[%emt 0:00:00]} Qb7 {[%emt 0:00:00]} 41. Nd5 {[%emt 0:10:31]} Nxe4 {[%emt 0:04:05]} 42. Qxe4 {[%emt 0:03:17]} Bxd5 {[%emt 0:00:07]} 43. Qe2 {[%emt 0:00:07]} Qc6 {[%emt 0:01:41]} 44. b4 {[%emt 0:00:55]} Qc2 {[%emt 0:01:10]} 45. Rd1 {[%emt 0:02:26]} Qxe2 {[%emt 0:00:49]} 46. Nxe2 {[%emt 0:00:09]} Be4 {[%emt 0:01:15]} 47. Ng3 {[%emt 0:00:33]} Bc2 {[%emt 0:00:48]} 48. Ra1 {[%emt 0:00:42]} Ba4 {[%emt 0:00:42]} 49. Ne4 {[%emt 0:00:19]} Rc4 {[%emt 0:00:15]} 50. Nd6 {[%emt 0:00:45]} Rd4 {[%emt 0:01:19]} 0-1

[Event "EYCC Girls U12 2018"]
[Site "Riga"]
[Date "2018.08.22"]
[Round "3"]
[White "Bashylina, Luisa"]
[Black "Dubovyk, Anastasiia"]
[Result "1-0"]
[ECO "B27"]
[WhiteElo "1817"]
[BlackElo "1721"]
[Annotator "NA"]
[PlyCount "77"]
[EventDate "2018.08.20"]
[EventType "swiss"]
[EventCountry "LAT"]
[SourceTitle "playchess.com"]
[Source "ChessBase"]
[SourceQuality "1"]
[TimeControl "40/5400+30:1800+30"]

1. e4 {[%emt 0:00:00]} c5 {[%emt 0:00:00]} 2. Nf3 {[%emt 0:00:00]} g6 {[%emt 0:00:00]} 3. d4 {[%emt 0:00:00]} cxd4 {[%emt 0:00:06]} 4. Qxd4 {[%emt 0:00:17]} Nf6 {[%emt 0:00:11]} 5. Nc3 {[%emt 0:00:22]} Nc6 {[%emt 0:00:31]} 6. Qa4 {[%emt 0:00:27]} Bg7 {[%emt 0:20:30]} 7. e5 {[%emt 0:01:34]} Ng8 {[%emt 0:00:45]} 8. Bf4 {[%emt 0:02:04]} Nh6 {[%emt 0:02:19]} 9. h3 {[%emt 0:11:44]} O-O {[%emt 0:06:19]} 10. O-O-O {[%emt 0:08:46]} b6 {[%emt 0:20:15]} 11. Ne4 {[%emt 0:13:08]} Bb7 {[%emt 0:06:14]} 12. Neg5 {[%emt 0:02:38]} Qc8 {[%emt 0:01:53]} 13. Bc4 {[%emt 0:13:41]} a6 {[%emt 0:09:42]} 14. Bd5 {[%emt 0:03:50]} e6 {[%emt 0:02:55]} 15. Be4 {[%emt 0:09:42]} Rd8 {[%emt 0:06:30]} 16. Qb3 {[%emt 0:06:08]} b5 {[%emt 0:05:06]} 17. Bd3 {[%emt 0:05:45]} Nf5 {[%emt 0:10:19]} 18. Ne4 {[%emt 0:03:51]} Ncd4 {[%emt 0:03:18]} 19. Nxd4 {[%emt 0:01:47]} Nxd4 {[%emt 0:00:10]} 20. Qb4 {[%emt 0:00:49]} Nc6 {[%emt 0:01:55]} 21. Qc5 {[%emt 0:04:46]} Qb8 {[%emt 0:00:47]} 22. Nd6 {[%emt 0:02:32]} Rf8 {[%emt 0:00:36]} 23. h4 {[%emt 0:00:51]} h5 {[%emt 0:00:24]} 24. Rhg1 {[%emt 0:00:48]} Qc7 {[%emt 0:00:37]} 25. f3 {[%emt 0:01:13]} Rab8 {[%emt 0:00:21]} 26. g4 {[%emt 0:00:28]} hxg4 {[%emt 0:00:13]} 27. fxg4 {[%emt 0:00:25]} Qa5 {[%emt 0:00:34]} 28. a3 {[%emt 0:01:43]} Qa4 {[%emt 0:00:42]} 29. Qe3 {[%emt 0:00:40]} b4 {[%emt 0:00:27]} 30. Nc4 {[%emt 0:03:14]} Ne7 {[%emt 0:00:35]} 31. Nb6 {[%emt 0:00:48]} Qc6 {[%emt 0:00:34]} 32. Be2 {[%emt 0:00:39]} b3 {[%emt 0:00:32]} 33. c3 {[%emt 0:00:16]} Rfd8 {[%emt 0:00:33]} 34. Bg5 {[%emt 0:00:18]} Kf8 {[%emt 0:00:26]} 35. Rgf1 {[%emt 0:00:45]} Bc8 {[%emt 0:00:32]} 36. Qf4 {[%emt 0:00:33]} f5 {[%emt 0:00:31]} 37. exf6 {[%emt 0:00:12]} Nf5 {[%emt 0:00:28]} 38. fxg7+ {[%emt 0:00:26]} Kxg7 {[%emt 0:00:16]} 39. gxf5 {[%emt 0:00:35]} 1-0

[Event "EYCC Girls U12 2018"]
[Site "Riga"]
[Date "2018.08.22"]
[Round "3"]
[White "Mikheeva, Galina"]
[Black "Donchenko, Ekaterina"]
[Result "1-0"]
[ECO "E71"]
[WhiteElo "1776"]
[BlackElo "1673"]
[Annotator "NA"]
[PlyCount "75"]
[EventDate "2018.08.20"]
[EventType "swiss"]
[EventCountry "LAT"]
[SourceTitle "playchess.com"]
[Source "ChessBase"]
[SourceQuality "1"]
[TimeControl "40/5400+30:1800+30"]

1. d4 {[%emt 0:00:00]} Nf6 {[%emt 0:00:00]} 2. c4 {[%emt 0:00:00]} g6 {[%emt 0:00:00]} 3. Nc3 {[%emt 0:00:00]} Bg7 {[%emt 0:00:00]} 4. e4 {[%emt 0:00:00]} d6 {[%emt 0:00:00]} 5. h3 {[%emt 0:00:16]} O-O {[%emt 0:00:03]} 6. Bg5 {[%emt 0:00:20]} c5 {[%emt 0:00:09]} 7. d5 {[%emt 0:00:19]} h6 {[%emt 0:00:18]} 8. Be3 {[%emt 0:00:27]} Kh7 {[%emt 0:07:48]} 9. Bd3 {[%emt 0:03:21]} e6 {[%emt 0:01:57]} 10. Qd2 {[%emt 0:12:27]} exd5 {[%emt 0:00:33]} 11. exd5 {[%emt 0:00:28]} Nbd7 {[%emt 0:02:35]} 12. Nf3 {[%emt 0:05:38]} a6 {[%emt 0:04:32]} 13. a4 {[%emt 0:00:43]} b6 {[%emt 0:13:44]} 14. O-O {[%emt 0:12:40]} Re8 {[%emt 0:02:31]} 15. Rfe1 {[%emt 0:06:34]} Nh5 {[%emt 0:20:10]} 16. g4 {[%emt 0:04:59]} Nhf6 {[%emt 0:09:18]} 17. Bf4 {[%emt 0:01:13]} Rxe1+ {[%emt 0:07:03]} 18. Rxe1 {[%emt 0:00:23]} Nb8 {[%emt 0:04:01]} 19. Bg3 {[%emt 0:06:39]} Ra7 {[%emt 0:02:14]} 20. Qf4 {[%emt 0:00:21]} Rd7 {[%emt 0:03:24]} 21. Kg2 {[%emt 0:06:20]} Kg8 {[%emt 0:00:52]} 22. Nd2 {[%emt 0:04:31]} g5 {[%emt 0:02:28]} 23. Qf3 {[%emt 0:01:55]} Re7 {[%emt 0:00:51]} 24. Re3 {[%emt 0:09:01]} h5 {[%emt 0:05:09]} 25. Bf5 {[%emt 0:11:39]} Rxe3 {[%emt 0:01:08]} 26. fxe3 {[%emt 0:00:54]} hxg4 {[%emt 0:00:40]} 27. hxg4 {[%emt 0:00:13]} Bxf5 {[%emt 0:01:57]} 28. gxf5 {[%emt 0:01:33]} Qe7 {[%emt 0:01:37]} 29. Nde4 {[%emt 0:06:21]} Ne8 {[%emt 0:01:27]} 30. Qg4 {[%emt 0:01:01]} Bxc3 {[%emt 0:01:17]} 31. bxc3 f6 {[%emt 0:00:23]} 32. Kf3 {[%emt 0:01:34]} Nd7 {[%emt 0:00:41]} 33. Qh5 {[%emt 0:01:38]} Ne5+ {[%emt 0:01:00]} 34. Bxe5 {[%emt 0:00:06]} Qxe5 {[%emt 0:00:11]} 35. Qxe8+ {[%emt 0:00:40]} Qxe8 {[%emt 0:00:25]} 36. Nxf6+ {[%emt 0:00:04]} Kf7 {[%emt 0:00:15]} 37. Nxe8 {[%emt 0:00:02]} Kxe8 {[%emt 0:00:07]} 38. Kg4 {[%emt 0:00:03]} 1-0